bitfinex/quotes_ETHUSD_20250314
["timestamp","ask_amount","ask_price","bid_price","bid_amount"]
[1741952714442,5.5991542,1909.6,1909.4,0.07932957]
[1741952714865,2.53369046,1909.5,1909.3,5.23735]
[1741952715548,5.5991542,1909.6,1909.4,5.23711]
[1741952716111,2.5991542,1909.6,1909.4,5.23707]
[1741952716317,2.53369046,1909.6,1909.4,5.23707]
[1741952717046,2.53369046,1909.6,1909.3,5.2375]
[1741952717241,2.53369046,1909.5,1909.3,5.2375]
[1741952717551,2.59915428,1909.5,1909.3,5.2375]
[1741952718048,2.53369046,1909.4,1909.0,5.23824]
[1741952718226,2.53369046,1909.4,1909.1,10.47574]
[1741952718432,2.53369046,1909.5,1909.2,5.23768]
[1741952718750,7.77070046,1909.5,1909.2,5.23768]
[1741952718948,2.53369046,1909.4,1909.2,5.23768]
[1741952719348,2.53369046,1909.5,1909.2,5.23768]
[1741952720351,5.23706,1909.5,1909.2,5.23768]
[1741952721688,0.06547164,1909.4,1909.1,5.99301]
[1741952721837,0.06547164,1909.4,1909.1,11.23094]
[1741952722042,0.06547164,1909.4,1909.1,11.23093]
[1741952722983,0.06547164,1909.4,1909.1,12.06886821]
[1741952723279,0.06547164,1909.4,1909.1,11.23093]
[1741952723638,11.24001,1909.6,1909.2,5.23762]
[1741952723867,11.23999,1909.6,1909.2,5.23762]
[1741952724261,5.30248161,1909.5,1909.1,5.99307]
[1741952724647,5.30248161,1909.5,1909.1,11.23101]
[1741952724878,5.30248161,1909.5,1909.1,5.99304]
[1741952725058,10.53965161,1909.5,1909.1,5.99304]
[1741952725261,5.30248161,1909.5,1909.1,11.23095]
[1741952726365,5.30248161,1909.5,1909.2,5.23778]
[1741952726746,6.43304277,1909.5,1909.1,0.7551]
[1741952726972,9.46327585,1909.3,1908.9,6.58051]
[1741952727274,0.856778,1909.2,1908.8,5.23873]
[1741952727455,0.856778,1909.2,1909.0,0.08029959]
[1741952727664,0.856778,1909.2,1908.9,0.08054635]
[1741952727850,0.856778,1909.2,1909.1,0.08005286]
[1741952728071,5.41254439,1909.2,1909.0,0.08058442]
[1741952728249,5.41254439,1909.2,1909.1,0.08033768]
[1741952728767,5.41254439,1909.2,1908.7,5.23915]
[1741952728942,5.41254439,1909.2,1909.1,0.08033768]
[1741952729141,5.41254439,1909.2,1908.7,10.47801]
[1741952729348,5.41254439,1909.2,1909.1,0.08033768]
[1741952729565,5.41254439,1909.2,1908.7,10.47801]
[1741952729770,5.41254439,1909.2,1909.1,0.08033768]
[1741952729970,5.41254439,1909.2,1908.7,10.47801]
[1741952730161,5.41254439,1909.2,1909.1,0.08033768]
[1741952730362,5.41254439,1909.2,1908.7,5.23899]
[1741952730363,4.22563585,1909.1,1908.7,5.23899]
[1741952730561,0.06548295,1909.0,1908.7,10.478]
[1741952730758,0.06548295,1909.0,1908.9,5.23861]
[1741952730967,0.06548295,1909.0,1908.8,5.23885]
[1741952731176,0.06548292,1909.1,1908.8,5.23885]
[1741952731559,4.29111877,1909.1,1908.6,5.23941]
[1741952731893,4.29111877,1909.1,1908.3,6.00377]
[1741952731894,4.22563585,1908.9,1908.3,6.00377]
[1741952732073,0.06549503,1908.8,1908.3,11.24385]
[1741952732267,0.06549503,1908.8,1908.3,0.7636]
[1741952732268,4.22563585,1908.7,1908.3,0.7636]
[1741952732467,0.06550103,1908.6,1908.2,5.24045]
[1741952732673,0.06550103,1908.6,1908.2,6.369022]
[1741952733381,0.06550103,1908.6,1908.2,6.368952]
[1741952733679,0.06550103,1908.6,1908.3,5.24004]
[1741952733857,0.06550103,1908.6,1908.3,6.07274]
[1741952734062,4.22563585,1908.7,1908.3,6.07295]
[1741952734261,9.46426585,1908.9,1908.3,6.7931022]
[1741952734579,9.52976594,1908.9,1908.3,12.0330722]
[1741952734783,0.2283,1908.8,1908.3,12.0330722]
[1741952734951,0.2283,1908.8,1908.3,6.7929622]
[1741952735148,0.06550009,1908.7,1908.3,6.7929622]
[1741952735458,7.29113594,1908.7,1908.2,5.24052]
[1741952735676,7.29113594,1908.7,1908.3,5.24024]
[1741952735858,7.29113594,1908.7,1908.2,10.48079]
[1741952736064,7.29113594,1908.7,1908.3,5.2402]
[1741952736894,0.2283,1908.6,1908.3,5.24024]
[1741952737093,0.06550333,1908.5,1908.3,5.24024]
[1741952737598,3.0,1908.7,1908.3,6.288301]
[1741952737795,3.0,1908.7,1908.3,5.24004]
[1741952738768,3.06550332,1908.7,1908.3,5.24004]
[1741952739974,0.2283,1908.6,1908.2,5.24051]
[1741952740190,0.06550395,1908.5,1908.2,5.24051]
[1741952740999,0.2283,1908.3,1908.0,5.241]
[1741952741186,0.2283,1908.3,1907.9,0.8326]
[1741952741187,0.06551206,1908.2,1907.9,6.07387]
[1741952741364,0.06551206,1908.2,1907.9,5.24127]
[1741952741992,0.06551206,1908.2,1907.9,5.24119]
[1741952742769,0.06551206,1908.2,1908.0,0.07294171]
[1741952742964,0.06551206,1908.2,1908.0,6.07307171]
[1741952743197,0.06551275,1908.3,1908.0,6.07307171]
[1741952743397,0.06551275,1908.3,1908.0,6.07300171]
[1741952743898,0.06551275,1908.3,1908.0,6.07295171]
[1741952745306,0.06551275,1908.3,1908.0,11.31389171]
[1741952745495,0.06551275,1908.3,1908.0,6.07295171]
[1741952745690,0.06551275,1908.3,1908.0,0.83204171]
[1741952745896,0.06551275,1908.3,1908.1,5.24072]
[1741952746093,3.0,1908.4,1908.1,10.48139]
[1741952746404,3.0,1908.4,1908.2,0.07331397]
[1741952746582,0.06551132,1908.3,1908.2,0.07331397]
[1741952746783,0.06551132,1908.3,1908.1,5.24067]
[1741952746983,0.06551132,1908.3,1908.2,0.07377036]
[1741952747301,0.06551132,1908.3,1908.0,5.24094]
[1741952747506,0.06551132,1908.3,1908.2,0.07372471]
[1741952747705,0.46454545,1908.3,1908.1,0.07394922]
[1741952747916,12.44393585,1908.2,1907.8,5.24148]
[1741952748201,0.06552047,1908.1,1907.8,5.24148]
[1741952748578,0.06552047,1908.1,1907.7,6.01973]
[1741952749304,3.0,1908.0,1907.6,11.29511]
[1741952749509,0.065521,1907.9,1907.6,11.29511]
[1741952749675,0.065521,1907.9,1907.7,5.24191]
[1741952749875,0.065521,1907.9,1907.7,10.4837]
[1741952751008,3.0,1908.0,1907.7,10.4837]
[1741952752079,0.06552091,1908.1,1907.8,5.24137]
[1741952752283,13.45886,1908.2,1907.8,5.24137]
[1741952752584,15.36870041,1908.2,1907.8,5.24137]
[1741952752784,0.06552061,1908.1,1907.8,5.24137]
[1741952753093,3.06552061,1908.1,1907.8,5.24137]
[1741952753504,3.0,1908.1,1907.8,5.24137]
[1741952753814,0.0655206,1908.0,1907.8,5.24137]
[1741952756214,0.0655206,1908.0,1907.7,10.48364]
[1741952756517,0.0655206,1908.0,1907.7,10.48351]
[1741952756915,0.2283,1907.9,1907.6,11.29528]
[1741952757114,0.2283,1907.9,1907.6,5.24214]
[1741952757285,0.2283,1907.9,1907.6,10.48415]
[1741952757485,0.2283,1907.9,1907.7,0.07862156]
[1741952757687,0.2283,1907.9,1907.6,5.24201]
[1741952757887,0.2283,1907.9,1907.8,0.07837449]
[1741952758117,0.2283,1907.9,1907.6,5.24201]
[1741952758118,0.78179206,1907.9,1907.6,5.24201]
[1741952758421,0.06552496,1907.8,1907.6,5.24201]
[1741952759421,0.29382494,1907.9,1907.6,5.24201]
[1741952760187,0.29382494,1907.9,1907.5,5.24233]
[1741952760591,0.29382494,1907.9,1907.5,10.48464]
[1741952760592,5.53521494,1907.9,1907.5,10.48464]
[1741952760899,5.53521494,1907.9,1907.5,5.24231]
[1741952761113,6.61284643,1907.9,1907.5,5.24231]
[1741952762232,11.85438643,1907.9,1907.5,5.24231]
[1741952762527,11.78886149,1907.9,1907.5,5.24231]
[1741952762891,6.54732149,1907.9,1907.5,10.48469]
[1741952763107,6.61284984,1907.9,1907.5,10.48469]
[1741952763307,6.61284984,1907.9,1907.5,5.24231]
[1741952763804,6.61284984,1907.9,1907.5,10.48467]
[1741952764134,5.24111,1908.0,1907.6,10.48421]
[1741952764431,5.30663776,1908.0,1907.6,5.24204]
[1741952764803,5.30663775,1908.0,1907.6,10.48411]
[1741952765313,8.86639746,1908.1,1907.7,10.48362]
[1741952765511,8.93194043,1908.1,1907.7,5.24173]
[1741952766757,11.66646964,1908.1,1907.7,5.24173]
[1741952767067,11.60094667,1908.1,1907.7,5.24173]
[1741952767223,0.06552174,1908.0,1907.8,5.24163]
[1741952769853,0.06552174,1908.0,1907.8,5.2415]
[1741952770221,0.06552174,1908.0,1907.8,10.48303]
[1741952770653,0.06552174,1908.0,1907.8,5.2415]
[1741952771065,7.92984041,1908.2,1908.1,6.04061]
[1741952771066,6.02,1908.2,1908.1,6.04061]
[1741952771258,10.52367068,1908.5,1908.1,6.04043]
[1741952771551,5.24003,1908.4,1908.0,5.24104]
[1741952771756,0.06551135,1908.3,1908.0,5.24094]
[1741952771944,0.06551135,1908.3,1908.1,5.24078]
[1741952772348,0.06551135,1908.3,1908.0,5.24094]
[1741952772349,5.30580135,1908.3,1908.0,5.24094]
[1741952772652,5.24054,1908.2,1908.1,0.0780092]
[1741952772853,5.24109,1908.0,1907.6,5.24207]
[1741952773056,0.06552419,1907.9,1907.6,5.24207]
[1741952773227,0.06552419,1907.9,1907.7,0.07885536]
[1741952773423,5.46884,1908.2,1907.8,5.24151]
[1741952773749,0.546884,1908.1,1907.9,5.31955124]
[1741952773950,3.2283,1908.2,1907.9,5.31955124]
[1741952774143,3.0,1908.2,1908.0,5.24096]
[1741952774338,3.0,1908.2,1908.1,5.24081]
[1741952774537,3.0,1908.2,1908.1,0.07792569]
[1741952775475,0.06551866,1908.3,1908.1,0.07792569]
[1741952776332,5.83645153,1908.3,1908.1,0.07792569]
[1741952776532,0.2283,1908.2,1907.9,5.24133]
[1741952776745,3.2283,1908.2,1907.9,5.24117]
[1741952776944,3.2283,1908.2,1907.9,10.48236]
[1741952777244,3.2283,1908.2,1907.9,5.24117]
[1741952777873,0.06551172,1908.1,1907.9,5.24117]
[1741952778086,3.06551172,1908.2,1908.0,5.24109]
[1741952778232,0.06551172,1908.2,1908.1,6.05551]
[1741952778734,3.06551082,1908.4,1908.1,6.05551]
[1741952778935,8.30552082,1908.4,1908.1,0.8147]
[1741952779371,8.30552082,1908.4,1908.1,6.0554]
[1741952781715,10.1590479,1908.4,1908.1,6.0554]
[1741952782980,10.1590479,1908.4,1908.1,0.8147]
[1741952783262,10.1590479,1908.4,1908.0,5.24095]
[1741952783936,10.1590479,1908.4,1908.1,5.24067]
[1741952784149,10.1590579,1908.4,1908.1,5.24067]
[1741952784730,9.69461585,1908.2,1907.7,0.7966]
[1741952784974,9.69461585,1908.2,1907.7,11.28017]
[1741952784975,0.06552146,1908.1,1907.7,11.28017]
[1741952785263,15.6987,1908.2,1907.8,5.24163]
[1741952785488,0.06552019,1908.1,1907.8,5.24148]
[1741952785795,0.06552019,1908.1,1907.8,10.483]
[1741952785962,0.06552019,1908.1,1907.8,5.24148]
[1741952787074,0.06552019,1908.1,1907.8,5.24146]
[1741952787274,0.06552019,1908.1,1907.8,10.48289]
[1741952787592,0.06552019,1908.1,1907.9,0.08225933]
[1741952787791,0.06552019,1908.1,1907.8,10.48289]
[1741952787990,0.06552019,1908.1,1908.0,0.08198486]
[1741952788158,0.06552019,1908.1,1907.9,0.08225933]
[1741952788364,0.06552019,1908.1,1908.0,0.08198486]
[1741952788788,0.06552019,1908.1,1907.8,5.24143]
[1741952788991,5.30647019,1908.1,1908.0,0.08198486]
[1741952789201,5.46939,1908.0,1907.9,0.08225933]
[1741952789385,13.71069,1908.0,1907.6,5.24204]
[1741952789597,0.06552142,1907.9,1907.6,5.24204]
[1741952790493,0.06552142,1907.9,1907.5,11.27259]
[1741952790789,5.30701142,1907.9,1907.5,6.03017]
[1741952790990,5.30690142,1907.9,1907.6,5.24218]
[1741952792469,5.30690142,1907.9,1907.5,6.03009]
[1741952792664,5.24166,1907.8,1907.4,5.24255]
[1741952792871,0.06552791,1907.7,1907.4,5.24255]
[1741952793083,5.30753791,1907.7,1907.4,5.24255]
[1741952793282,5.30753791,1907.7,1906.7,6.00181]
[1741952793283,5.24367,1907.1,1906.7,6.00181]
[1741952793484,0.2283,1907.3,1906.7,6.00181]
[1741952793485,0.06555245,1907.0,1906.7,0.7574]
[1741952793677,5.24343,1907.2,1906.8,5.24411]
[1741952793879,0.06554692,1907.1,1906.8,5.24411]
[1741952794081,5.24343,1907.2,1906.8,5.844261]
[1741952794300,5.30922692,1907.1,1906.8,0.600151]
[1741952794672,10.55300692,1907.1,1906.8,0.600151]
[1741952794871,10.55295692,1907.1,1906.8,0.600151]
[1741952795083,5.30922692,1907.1,1906.8,0.600151]
[1741952795572,5.30922692,1907.1,1906.8,5.844531]
[1741952796204,0.06554692,1907.1,1906.9,0.5844531]
[1741952796504,3.06555102,1907.2,1907.0,6.03943]
[1741952796908,3.0,1907.2,1907.0,6.03943]
[1741952797503,8.53717624,1907.2,1906.8,11.28418]
[1741952797900,8.53717624,1907.2,1906.8,6.03981]
[1741952798314,8.53717624,1907.2,1906.8,11.28402]
[1741952798475,3.06554624,1907.2,1906.9,5.244]
[1741952798805,0.06554624,1907.2,1906.9,5.244]
[1741952799203,0.06554624,1907.2,1906.9,10.48794]
[1741952799506,0.06554624,1907.2,1906.9,5.24394]
[1741952799704,0.06554624,1907.2,1906.9,10.48787]
[1741952800005,9.16252386,1907.2,1906.8,5.24425]
[1741952800313,9.16252386,1907.2,1906.8,10.48853]
[1741952800474,9.16252386,1907.2,1906.8,5.24425]
[1741952801183,9.16252386,1907.2,1906.8,10.48848]
[1741952801804,9.16252386,1907.2,1906.8,10.48851]
[1741952802101,9.16252386,1907.2,1906.9,5.24411]
[1741952802309,3.91923386,1907.2,1906.9,5.24411]
[1741952802508,3.91923386,1907.2,1907.0,0.07817451]
[1741952802509,9.16253386,1907.2,1907.0,0.07817451]
[1741952802710,9.16253386,1907.2,1906.8,5.24423]
[1741952802906,8.30884624,1907.2,1907.1,0.07792725]
[1741952803089,8.30884624,1907.2,1906.9,5.24408]
[1741952803291,8.30884624,1907.2,1907.0,0.07817451]
[1741952806382,8.30884624,1907.2,1906.9,5.24407]
[1741952806582,8.30884624,1907.2,1907.1,0.07792725]
[1741952806784,8.30884624,1907.2,1906.9,5.24407]
[1741952806984,8.30884624,1907.2,1907.1,0.07792725]
[1741952807216,8.30884624,1907.2,1906.9,5.24407]
[1741952807411,8.30884624,1907.2,1907.1,0.07792725]
[1741952807608,9.68686286,1907.2,1907.0,0.07817451]
[1741952807813,9.68686286,1907.2,1907.1,0.07792725]
[1741952808187,14.93033286,1907.2,1906.8,5.24422]
[1741952808390,9.62131662,1907.2,1907.1,0.07792725]
[1741952808589,14.93040129,1907.2,1906.8,5.24422]
[1741952808781,14.86484662,1907.2,1907.1,0.07792725]
[1741952808986,9.62131662,1907.2,1906.8,5.24422]
[1741952809184,9.68687134,1907.2,1907.1,0.07792725]
[1741952809397,9.68687134,1907.2,1906.9,5.2441]
[1741952809624,9.68687134,1907.2,1907.1,0.07792725]
[1741952809816,9.68687134,1907.2,1907.0,0.07817451]
[1741952810123,8.30884472,1907.2,1907.1,0.07792725]
[1741952810414,8.30884472,1907.2,1906.8,5.24437]
[1741952810596,8.30884472,1907.2,1907.1,0.07792725]
[1741952810915,8.30884472,1907.2,1906.8,10.4886]
[1741952811101,8.30884472,1907.2,1907.1,0.07792725]
[1741952811323,9.68686419,1907.2,1906.8,10.4886]
[1741952811606,8.30884472,1907.2,1907.1,0.07792725]
[1741952811802,3.06555472,1907.2,1906.9,5.24394]
[1741952812019,3.06555472,1907.2,1907.1,5.32148725]
[1741952812223,3.0,1907.2,1907.0,5.32189451]
[1741952812511,3.0,1907.2,1907.0,5.24372]
[1741952812681,0.06554807,1907.1,1907.0,5.24372]
[1741952813517,6.02,1907.6,1907.1,0.7659]
[1741952813718,0.06553525,1907.7,1907.4,6.00863]
[1741952813915,0.06553525,1907.7,1907.4,11.2512]
[1741952814138,3.06553525,1907.7,1907.4,11.2511]
[1741952814419,3.06553525,1907.7,1907.5,5.24244]
[1741952814615,3.0,1907.7,1907.6,5.24218]
[1741952814919,3.06553078,1907.7,1907.6,5.24218]
[1741952815115,3.0,1907.7,1907.6,5.24218]
[1741952815619,0.39278184,1907.8,1907.6,5.24218]
[1741952815816,0.45831058,1907.8,1907.6,5.24218]
[1741952816204,0.45831058,1907.8,1907.2,5.24328]
[1741952816205,4.22563585,1907.7,1907.2,0.7933]
[1741952816399,0.06553706,1907.6,1907.4,5.24264]
[1741952816798,0.06553706,1907.6,1907.3,5.24277]
[1741952817019,5.30774706,1907.6,1907.2,6.03644]
[1741952817217,5.24246,1907.5,1907.1,11.31639]
[1741952817522,0.06553713,1907.4,1907.2,0.07734658]
[1741952817822,5.30829713,1907.4,1907.2,0.07734658]
[1741952818520,0.06553713,1907.4,1907.3,0.07716606]
[1741952818720,5.24247,1907.5,1907.1,10.48688]
[1741952818921,5.24247,1907.5,1907.3,0.07716606]
[1741952819122,0.06554214,1907.4,1907.1,10.48688]
[1741952819626,0.06554214,1907.4,1907.1,5.24344]
[1741952819786,5.24247,1907.5,1907.1,10.48684]
[1741952820524,5.30801217,1907.5,1907.1,10.48684]
[1741952821090,5.30801217,1907.5,1907.1,5.2434]
[1741952821291,5.4705,1907.6,1907.2,5.2432]
[1741952821620,0.06554141,1907.6,1907.4,5.24268]
[1741952821926,6.02,1907.7,1907.5,5.24246]
[1741952822219,3.06553155,1907.7,1907.4,5.24268]
[1741952822425,3.06553155,1907.7,1907.4,5.24261]
[1741952823525,3.06553155,1907.7,1907.4,5.24259]
[1741952824231,8.30750155,1907.7,1907.3,5.24299]
[1741952824527,5.24228,1907.6,1907.3,5.24299]
[1741952824700,5.24307,1907.3,1907.0,6.09]
[1741952824905,0.0655457,1907.2,1907.0,5.24373]
[1741952825117,0.06554382,1907.3,1907.0,5.24373]
[1741952825500,5.30856382,1907.3,1906.9,6.0357]
[1741952825706,5.30856382,1907.3,1906.9,7.163707]
[1741952825901,5.30856382,1907.3,1906.9,12.407647]
[1741952826115,5.30856382,1907.3,1906.9,12.407597]
[1741952826315,5.30856382,1907.3,1906.9,7.163627]
[1741952826833,3.06554382,1907.3,1907.0,5.24372]
[1741952827825,3.06554382,1907.3,1906.9,12.407597]
[1741952828025,3.06554382,1907.3,1906.9,7.163627]
[1741952829235,8.30868382,1907.3,1907.0,5.24379]
[1741952829631,8.30868382,1907.3,1906.9,7.163627]
[1741952830734,8.30868382,1907.3,1906.9,5.24392]
[1741952830912,0.2283,1907.2,1906.9,5.24392]
[1741952831723,0.2283,1907.2,1906.9,10.48786]
[1741952831927,0.2283,1907.2,1906.9,10.48789]
[1741952832532,0.2283,1907.2,1907.0,0.07705946]
[1741952833032,5.30910385,1907.1,1907.0,0.07705946]
[1741952833419,5.47246,1906.9,1906.5,10.49014]
[1741952833625,0.06555833,1906.8,1906.5,10.49014]
[1741952834028,10.78233833,1906.9,1906.5,5.24505]
[1741952834264,5.47246,1906.9,1906.5,5.24505]
[1741952834464,5.2445,1906.8,1906.4,6.06682]
[1741952834744,0.0655645,1906.7,1906.4,11.31212]
[1741952834906,0.0655645,1906.7,1906.4,5.2453]
[1741952835104,0.0655645,1906.7,1906.5,5.24511]
[1741952835712,0.06556449,1906.8,1906.6,5.24493]
[1741952835911,0.06556449,1906.8,1906.5,5.24506]
[1741952836709,0.06556449,1906.8,1906.5,6.373131]
[1741952837010,0.06556449,1906.8,1906.7,5.24466]
[1741952837209,0.29385871,1906.9,1906.6,5.24493]
[1741952837609,5.53796871,1906.9,1906.6,5.24493]
[1741952837912,0.29385871,1906.9,1906.6,5.24493]
[1741952838330,0.06555871,1906.9,1906.7,5.24463]
[1741952838536,0.06555871,1907.0,1906.8,5.24438]
[1741952838959,0.06555871,1907.0,1906.7,6.00453]
[1741952839124,0.06555871,1907.0,1906.7,5.24463]
[1741952839329,5.30949871,1907.0,1906.6,6.00481]
[1741952840025,0.06555871,1907.0,1906.7,5.24455]
[1741952840223,0.06555871,1907.0,1906.7,10.48905]
[1741952840409,0.06555871,1907.0,1906.8,5.24421]
[1741952840609,0.06555439,1907.1,1906.6,1.939899]
[1741952840814,0.06555439,1907.1,1906.8,5.24436]
[1741952841044,0.06555439,1907.1,1906.8,10.48859]
[1741952841215,0.06555439,1907.1,1906.8,10.48845]
[1741952841567,0.06555439,1907.1,1906.8,5.24422]
[1741952841841,0.06555439,1907.1,1906.9,5.2441]
[1741952843055,0.06555439,1907.1,1906.9,5.24393]
[1741952845742,0.06555439,1907.1,1906.8,5.24435]
[1741952845942,5.47225,1907.0,1906.6,6.00483]
[1741952846241,0.06555539,1906.9,1906.7,5.24466]
[1741952846443,0.06555499,1907.0,1906.7,5.24466]
[1741952847326,0.06555499,1907.0,1906.8,0.07463143]
[1741952848117,8.24332,1907.2,1906.8,5.31900143]
[1741952848317,8.24332,1907.2,1906.8,10.56325143]
[1741952848517,8.24332,1907.2,1906.8,5.31888143]
[1741952849047,8.24332,1907.2,1906.8,5.31886143]
[1741952849271,13.48678,1907.2,1906.8,5.31886143]
[1741952849454,0.06555436,1907.1,1906.8,5.31886143]
[1741952850052,5.30911436,1907.1,1906.8,5.31886143]
[1741952850416,5.24356,1907.1,1906.8,5.31886143]
[1741952850618,0.06555434,1907.0,1906.8,5.31886143]
[1741952851453,0.06555434,1907.0,1906.8,0.07463143]
[1741952851953,5.30939434,1907.0,1906.8,0.07463143]
[1741952852130,0.06555434,1907.0,1906.8,0.07463143]
[1741952852331,5.47241,1906.9,1906.8,0.07463143]
[1741952852532,0.2283,1906.9,1906.6,5.24476]
[1741952852728,0.06556123,1906.8,1906.6,5.24476]
[1741952852943,0.06556123,1906.8,1906.7,0.07485381]
[1741952853145,0.06556123,1906.8,1906.6,5.24476]
[1741952853355,0.06556123,1906.8,1906.7,0.07485381]
[1741952853937,0.06556123,1906.8,1906.6,5.24476]
[1741952854259,0.06556123,1906.8,1906.7,0.07485381]
[1741952854627,0.06556123,1906.8,1906.6,5.24476]
[1741952854831,0.06556123,1906.8,1906.7,0.07485381]
[1741952855031,5.86374335,1906.8,1906.4,5.24547]
[1741952855371,5.30994123,1906.8,1906.4,5.24533]
[1741952855665,5.30994123,1906.8,1906.5,0.07539845]
[1741952856427,5.30994123,1906.8,1906.5,5.32059845]
[1741952856627,5.30994123,1906.8,1906.5,0.07539845]
[1741952856976,5.30994123,1906.8,1906.5,5.32056845]
[1741952857122,5.30994123,1906.8,1906.5,0.07539845]
[1741952857327,0.06556123,1906.8,1906.6,5.24492]
[1741952857648,0.06556123,1906.8,1906.7,0.07490371]
[1741952857849,5.30996123,1906.8,1906.5,6.02675]
[1741952858351,5.30996123,1906.8,1906.6,0.07537562]
[1741952858556,0.06556123,1906.8,1906.6,0.07537562]
[1741952861080,5.30995123,1906.8,1906.6,0.07537562]
[1741952861258,5.6993639,1906.8,1906.6,0.07537562]
[1741952861757,0.4549739,1906.8,1906.6,0.07537562]
[1741952862999,0.06556123,1906.8,1906.6,6.61521818]
[1741952863161,3.06555858,1907.0,1906.8,5.24418]
[1741952863601,3.06555858,1907.0,1906.8,10.4884]
[1741952863753,3.06555858,1907.0,1906.9,0.07463363]
[1741952864452,3.0,1907.0,1906.9,5.31874363]
[1741952864752,3.0,1907.0,1906.9,0.07463363]
[1741952864952,3.0,1907.0,1906.7,5.24451]
[1741952865169,0.06555416,1906.9,1906.8,5.24428]
[1741952865373,0.06555416,1906.9,1906.8,5.31909438]
[1741952866982,0.06555416,1906.9,1906.8,0.07481438]
[1741952868686,0.06555416,1906.9,1906.8,5.31919438]
[1741952868885,3.06555421,1907.0,1906.8,5.31919438]
[1741952869689,3.06555421,1907.0,1906.8,0.07481438]
[1741952869859,3.06555421,1907.0,1906.8,5.31909438]
[1741952870880,3.06555421,1907.0,1906.8,0.07481438]
[1741952873488,8.30953421,1907.0,1906.8,0.07481438]
[1741952873693,3.06555421,1907.0,1906.8,0.07481438]
[1741952873989,3.06555421,1907.0,1906.7,5.24456]
[1741952874192,3.06555421,1907.0,1906.9,0.07364442]
[1741952874361,4.42085063,1907.0,1906.9,0.07364442]
[1741952874557,4.42085063,1907.0,1906.7,10.48909]
[1741952874768,3.06555421,1907.0,1906.8,0.07389172]
[1741952875707,8.30940421,1907.0,1906.8,0.07389172]
[1741952875890,5.47241,1906.9,1906.8,0.07389172]
[1741952876215,0.2283,1906.9,1906.8,0.07389876]
[1741952876508,0.2283,1906.9,1906.6,10.4896]
[1741952876707,0.06556059,1906.8,1906.6,10.48958]
[1741952876999,0.29386058,1906.9,1906.6,10.48959]
[1741952877209,8.24385,1907.0,1906.7,5.24453]
[1741952877504,3.0,1907.0,1906.8,5.24416]
[1741952877669,3.06555466,1907.0,1906.8,6.00666]
[1741952877869,3.06555466,1907.0,1906.9,0.07365145]
[1741952879110,3.06555466,1907.0,1906.9,5.31776145]
[1741952879411,3.0,1907.0,1906.9,5.31776145]
[1741952879712,4.989,1907.1,1907.0,5.24383]
[1741952879872,3.0,1907.1,1907.0,5.24383]
[1741952880215,3.0,1907.1,1907.0,5.31723417]
[1741952880769,0.40054209,1907.3,1907.1,6.03752]
[1741952880980,0.0655445,1907.3,1907.0,5.31719417]
[1741952881181,0.2938445,1907.3,1907.2,0.072785]
[1741952881384,0.0655445,1907.3,1907.1,5.31654223]
[1741952881609,0.0655445,1907.3,1907.2,0.072785]
[1741952885472,3.06554349,1907.4,1907.2,5.8475055]
[1741952885684,3.06554349,1907.4,1907.2,6.103175]
[1741952886009,3.06554349,1907.4,1907.2,11.346355]
[1741952886206,27.59263585,1907.7,1907.3,5.24285]
[1741952886207,23.367,1907.7,1907.3,5.24285]
[1741952886532,0.06554154,1907.5,1907.4,0.07201632]
[1741952886981,0.06554154,1907.5,1907.2,11.27354]
[1741952887181,0.06554154,1907.5,1907.2,12.400894]
[1741952887382,0.06554154,1907.5,1907.3,0.07206403]
[1741952887579,5.24273,1907.4,1907.3,0.07206403]
[1741952887999,10.77949347,1907.4,1907.0,6.0574]
[1741952888196,10.71395,1907.4,1907.3,0.07206403]
[1741952888400,10.71395,1907.4,1907.0,6.0574]
[1741952888926,10.71395,1907.4,1907.1,0.08060204]
[1741952889429,13.71396,1907.4,1907.1,0.08060204]
[1741952890118,8.47103,1907.4,1907.1,0.08060204]
[1741952890521,0.06554347,1907.3,1907.1,0.08060204]
[1741952890737,0.06554347,1907.3,1907.1,5.32413204]
[1741952891029,0.06554347,1907.3,1907.1,6.46228724]
[1741952891228,3.0,1907.4,1907.1,6.46220724]
[1741952891398,3.06554093,1907.5,1907.2,5.24313]
[1741952891706,0.06554093,1907.5,1907.3,0.08012655]
[1741952891910,5.30802093,1907.5,1907.3,0.08012655]
[1741952893134,0.06554093,1907.5,1907.3,0.08012655]
[1741952893317,0.06554093,1907.5,1907.3,6.10457655]
[1741952893627,0.06553619,1907.6,1907.3,6.02445]
[1741952893809,0.06553619,1907.6,1907.4,0.07984267]
[1741952894825,0.06553619,1907.6,1907.3,6.02445]
[1741952895022,3.06553619,1907.6,1907.5,0.07956806]
[1741952895208,3.06553619,1907.6,1907.4,0.07984267]
[1741952895413,3.06553619,1907.6,1907.5,0.07956806]
[1741952896134,9.17735873,1907.6,1907.3,0.7817]
[1741952896341,9.17735873,1907.6,1907.5,0.07161126]
[1741952896342,13.77839619,1907.6,1907.5,0.07161126]
[1741952896535,13.71286,1907.6,1907.4,0.07185841]
[1741952896736,13.71286,1907.6,1907.5,0.07154478]
[1741952896944,8.47049,1907.6,1907.5,0.07154478]
[1741952897108,13.77840617,1907.6,1907.2,5.24308]
[1741952897309,8.47049,1907.6,1907.5,0.07146998]
[1741952897630,9.90727016,1907.6,1907.2,5.24308]
[1741952897942,8.53602616,1907.6,1907.3,5.243]
[1741952898142,8.53602616,1907.6,1907.3,5.3149643]
[1741952899637,8.53602616,1907.6,1907.3,0.0719643]
[1741952900133,3.06553616,1907.6,1907.4,6.01638]
[1741952900336,0.0655344,1907.5,1907.4,6.01638]
[1741952900932,3.06553439,1907.6,1907.4,6.01638]
[1741952901624,0.06553439,1907.6,1907.4,6.01638]
[1741952903346,0.06553439,1907.6,1907.4,0.7738]
[1741952903720,0.06553439,1907.6,1907.4,11.25904]
[1741952903926,0.06553439,1907.6,1907.5,5.24246]
[1741952904127,3.0,1907.7,1907.6,5.24218]
[1741952904128,3.06553093,1907.7,1907.6,5.24218]
[1741952904718,0.2283,1908.0,1907.4,6.01646]
[1741952904944,0.06552365,1907.9,1907.6,6.0223]
[1741952905147,3.06552365,1907.9,1907.6,6.0223]
[1741952905447,3.06552365,1907.9,1907.6,11.26439]
[1741952905612,3.06552365,1907.9,1907.6,6.0223]
[1741952906545,7.2911595,1907.9,1907.4,6.0491]